bitfinex/quotes_SOLUSD_20241216
["timestamp","ask_amount","ask_price","bid_price","bid_amount"]
[1734379730996,0.31783289,217.24,217.23,10.72234818]
[1734379731506,0.31783289,217.26,217.23,10.72234818]
[1734379731753,0.31783289,217.24,217.23,10.72234818]
[1734379732379,0.31783289,217.26,217.23,10.72234818]
[1734379732575,0.31783289,217.26,217.25,10.72234818]
[1734379732803,0.31783289,217.28,217.25,10.72234818]
[1734379732965,0.31783289,217.28,217.27,10.72234818]
[1734379735272,0.31783289,217.28,217.27,10.84783818]
[1734379735511,0.31783289,217.3,217.28,0.12549]
[1734379735831,6.2654,217.37,217.29,10.72234818]
[1734379735832,0.68058391,217.36,217.29,10.72234818]
[1734379736027,0.68058391,217.36,217.33,10.72234818]
[1734379736392,0.68058391,217.36,217.35,10.72234818]
[1734379736931,0.51020791,217.39,217.35,10.72234818]
[1734379737118,0.69237502,217.41,217.38,10.72234818]
[1734379737930,0.69237502,217.43,217.4,10.72234818]
[1734379738329,0.69237502,217.43,217.31,1.5544]
[1734379738330,0.69237502,217.43,217.41,10.72234818]
[1734379738506,0.69237502,217.45,217.42,10.72234818]
[1734379738834,0.69237502,217.46,217.44,10.72234818]
[1734379739041,0.69237502,217.48,217.44,10.72234818]
[1734379739593,0.69237502,217.51,217.47,10.72234818]
[1734379739817,0.69237502,217.51,217.5,10.72234818]
[1734379740002,41.99237502,217.54,217.5,10.72234818]
[1734379740317,0.69237502,217.54,217.5,10.72234818]
[1734379741202,0.69237502,217.54,217.49,10.72234818]
[1734379741408,0.69237502,217.54,217.4,0.12549]
[1734379741409,52.02234818,217.53,217.4,0.12549]
[1734379741620,10.72234818,217.51,217.44,10.72234818]
[1734379741802,0.69237502,217.5,217.44,10.72234818]
[1734379742335,0.69237502,217.5,217.45,16.72884558]
[1734379742695,0.69237502,217.5,217.44,16.72884558]
[1734379743101,16.72884558,217.45,217.35,9.62127524]
[1734379743298,16.72884558,217.43,217.36,16.72884558]
[1734379743534,17.4212206,217.42,217.35,16.72884558]
[1734379743918,0.69237502,217.42,217.36,16.72884558]
[1734379744121,0.69237502,217.42,217.37,16.72884558]
[1734379744447,17.4212206,217.43,217.36,16.72884558]
[1734379745337,0.69237502,217.43,217.38,16.72884558]
[1734379745841,0.69237502,217.43,217.34,1.6421]
[1734379745842,16.72884558,217.42,217.36,16.72884558]
[1734379746138,0.69237502,217.41,217.36,16.72884558]
[1734379746816,0.69237502,217.41,217.37,16.72884558]
[1734379747016,0.69237502,217.43,217.37,16.72884558]
[1734379749447,0.69237502,217.43,217.38,16.72884558]
[1734379749608,16.72884558,217.45,217.38,16.72884558]
[1734379749609,0.69237502,217.44,217.38,16.72884558]
[1734379750441,41.99237502,217.44,217.38,16.72884558]
[1734379752826,0.69237502,217.44,217.4,16.72884558]
[1734379753125,0.69237502,217.45,217.4,16.72884558]
[1734379753311,0.69237502,217.45,217.42,16.72884558]
[1734379753916,0.69237502,217.46,217.41,16.72884558]
[1734379755712,41.99237502,217.46,217.4,16.72884558]
[1734379756137,41.99237502,217.46,217.36,16.72884558]
[1734379756138,41.3,217.42,217.36,16.72884558]
[1734379756314,58.02884558,217.4,217.34,16.72884558]
[1734379756516,58.02884558,217.38,217.32,16.72884558]
[1734379756717,0.69237502,217.37,217.32,16.72884558]
[1734379756918,0.69237502,217.37,217.34,16.72884558]
[1734379757108,0.69237502,217.37,217.35,16.72884558]
[1734379757309,0.69237502,217.39,217.34,16.72884558]
[1734379757511,0.69237502,217.39,217.35,16.72884558]
[1734379758326,41.99237502,217.39,217.34,16.72884558]
[1734379758646,41.99237502,217.39,217.33,16.72884558]
[1734379759714,58.7212206,217.39,217.32,16.72884558]
[1734379760239,41.3,217.38,217.32,16.72884558]
[1734379760536,0.69237502,217.37,217.32,16.72884558]
[1734379762720,0.69237502,217.37,217.34,16.72884558]
[1734379762916,0.69237502,217.38,217.34,16.72884558]
[1734379763240,58.7212206,217.38,217.31,16.72884558]
[1734379763421,17.4212206,217.38,217.31,16.72884558]
[1734379763622,0.69237502,217.38,217.32,16.72884558]
[1734379765435,16.72884558,217.37,217.29,16.72884558]
[1734379765646,17.4212206,217.36,217.29,16.72884558]
[1734379766234,11.41314678,217.36,217.29,10.72077176]
[1734379766665,0.69237502,217.36,217.29,10.72077176]
[1734379766872,0.69237502,217.36,217.3,10.72077176]
[1734379767032,0.69237502,217.36,217.32,10.72077176]
[1734379767340,8.2683,217.38,217.33,10.72077176]
[1734379767341,0.69237502,217.37,217.33,10.72077176]
[1734379767537,0.69237502,217.37,217.32,10.72077176]
[1734379768559,41.3,217.41,217.34,10.72077176]
[1734379768761,0.69237502,217.4,217.34,10.72077176]
[1734379769666,11.41314678,217.4,217.33,10.72077176]
[1734379770166,17.43642274,217.4,217.33,16.74404772]
[1734379770732,0.69237502,217.4,217.34,16.74404772]
[1734379771263,17.43642274,217.4,217.33,16.74404772]
[1734379771566,17.43642274,217.4,217.3,0.12549]
[1734379771567,16.74404772,217.39,217.32,16.74404772]
[1734379771777,0.69237502,217.38,217.32,16.74404772]
[1734379772069,16.74404772,217.36,217.29,16.74404772]
[1734379772354,17.43642274,217.35,217.28,16.74404772]
[1734379772562,16.74404772,217.34,217.27,16.74404772]
[1734379772737,0.69237502,217.33,217.27,16.74404772]
[1734379772938,0.69237502,217.33,217.28,16.74404772]
[1734379773135,0.69237502,217.33,217.29,16.74404772]
[1734379773355,0.69237502,217.35,217.29,16.74404772]
[1734379774762,17.43642274,217.36,217.29,16.74404772]
[1734379779266,0.69237502,217.36,217.3,16.74404772]
[1734379779573,17.43642274,217.36,217.29,16.74404772]
[1734379780759,0.69237502,217.36,217.3,16.74404772]
[1734379780968,17.43642274,217.36,217.29,16.74404772]
[1734379784377,17.43642274,217.36,217.3,16.74404772]
[1734379784577,0.69237502,217.36,217.3,16.74404772]
[1734379784870,0.69237502,217.36,217.31,16.74404772]
[1734379785061,0.69237502,217.37,217.31,16.74404772]
[1734379787253,0.69237502,217.37,217.25,16.74404772]
[1734379787254,0.69237502,217.37,217.3,16.74404772]
[1734379788765,17.43642274,217.37,217.3,16.74404772]
[1734379790059,11.41160892,217.37,217.3,10.7192339]
[1734379790256,0.69237502,217.37,217.34,10.7192339]
[1734379790460,1.65799267,217.43,217.25,43.0024256]
[1734379790461,52.71160892,217.4,217.33,10.7192339]
[1734379790659,41.99237502,217.4,217.34,10.7192339]
[1734379790978,0.69237502,217.4,217.34,10.7192339]
[1734379791165,52.71160892,217.4,217.33,10.7192339]
[1734379791546,0.69237502,217.4,217.35,10.7192339]
[1734379792354,0.69237502,217.41,217.39,10.7192339]
[1734379792583,0.81576769,217.43,217.38,10.7192339]
[1734379793976,10.7192339,217.41,217.32,1.6642]
[1734379794179,11.41160892,217.4,217.33,10.7192339]
[1734379794958,0.69237502,217.4,217.34,10.7192339]
[1734379795272,41.42339267,217.43,217.33,10.7192339]
[1734379795273,10.7192339,217.39,217.33,10.7192339]
[1734379795479,0.69237502,217.38,217.33,10.7192339]
[1734379795882,0.69237502,217.38,217.34,10.7192339]
[1734379796079,0.69237502,217.39,217.34,10.7192339]
[1734379797078,0.69237502,217.4,217.34,10.7192339]
[1734379797379,0.69237502,217.41,217.33,0.12549]
[1734379797679,11.41160892,217.41,217.35,10.7192339]
[1734379797875,11.41160892,217.41,217.34,10.7192339]
[1734379798083,11.41160892,217.41,217.35,10.7192339]
[1734379798687,0.69237502,217.41,217.35,10.7192339]
[1734379799604,0.81576769,217.43,217.37,10.7192339]
[1734379801454,0.81576769,217.43,217.38,10.7192339]
[1734379802160,0.12339267,217.43,217.39,10.7192339]
[1734379804574,0.12339267,217.43,217.42,10.7192339]
[1734379804889,0.12339267,217.43,217.42,10.8447239]
[1734379806185,0.12339267,217.43,217.42,16.84803547]
[1734379806362,0.12339267,217.43,217.42,46.38374303]
[1734379809578,0.12339267,217.43,217.42,22.60685903]
[1734379809779,0.5483133,217.56,217.43,23.902374]
[1734379809972,0.5483133,217.56,217.54,16.72254547]
[1734379810683,0.5483133,217.56,217.55,16.72254547]
[1734379815799,0.5483133,217.56,217.55,16.84803547]
[1734379816878,0.5483133,217.56,217.55,20.12549]
[1734379817180,0.5483133,217.56,217.55,36.84803547]
[1734379818410,43.64957502,217.71,217.56,11.58915413]
[1734379818577,0.69237502,217.69,217.65,16.72254547]
[1734379818780,6.99257502,217.7,217.66,16.72254547]
[1734379818988,6.3002,217.7,217.67,16.72254547]
[1734379820716,17.41492049,217.69,217.63,16.72254547]
[1734379820875,41.3,217.68,217.61,16.72254547]
[1734379821075,16.72254547,217.65,217.58,16.72254547]
[1734379821385,16.72254547,217.63,217.57,16.72254547]
[1734379821593,16.72254547,217.65,217.58,16.72254547]
[1734379821774,0.69237502,217.64,217.59,16.72254547]
[1734379821982,0.69237502,217.64,217.58,16.72254547]
[1734379822584,0.69237502,217.64,217.59,16.72254547]
[1734379823003,0.69237502,217.65,217.59,16.72254547]
[1734379823185,16.72254547,217.63,217.57,16.72254547]
[1734379823392,16.72254547,217.69,217.52,1.5085]
[1734379823393,16.72254547,217.61,217.54,16.72254547]
[1734379823708,0.69237502,217.6,217.54,16.72254547]
[1734379824482,17.41492049,217.6,217.53,16.72254547]
[1734379824681,0.69237502,217.6,217.54,16.72254547]
[1734379825901,0.69237502,217.62,217.56,16.72254547]
[1734379826287,0.69237502,217.62,217.55,16.72254547]
[1734379826697,17.41492049,217.62,217.55,16.72254547]
[1734379827079,0.69237502,217.62,217.55,16.72254547]
[1734379828082,17.41492049,217.62,217.55,16.72254547]
[1734379828282,16.72254547,217.61,217.54,16.72254547]
[1734379828498,0.69237502,217.6,217.56,16.72254547]
[1734379828707,0.69237502,217.62,217.56,16.72254547]
[1734379834306,11.38666479,217.62,217.56,10.69428977]
[1734379835598,0.69237502,217.62,217.58,10.69428977]
[1734379835908,0.69237502,217.62,217.57,10.69428977]
[1734379836091,11.38666479,217.62,217.56,10.69428977]
[1734379838614,0.69237502,217.62,217.56,10.69428977]
[1734379839113,11.38666479,217.62,217.56,10.69428977]
[1734379839989,0.69237502,217.62,217.56,10.69428977]
[1734379840189,11.38666479,217.62,217.56,10.69428977]
[1734379840716,10.69428977,217.61,217.54,10.69428977]
[1734379840916,10.69428977,217.56,217.5,5.75882356]
[1734379841085,10.69428977,217.51,217.45,22.42738557]
[1734379841285,0.69237502,217.55,217.45,16.722545]
[1734379841286,11.38666479,217.5,217.45,16.722545]
[1734379841505,11.38666479,217.5,217.44,10.69428977]
[1734379841715,10.69428977,217.48,217.41,10.69428977]
[1734379842015,10.69428977,217.45,217.38,10.69428977]
[1734379842314,0.69237502,217.44,217.39,10.69428977]
[1734379842704,0.69237502,217.44,217.41,10.69428977]
[1734379842898,41.3,217.48,217.43,10.69428977]
[1734379843218,0.69237502,217.47,217.43,10.69428977]
[1734379843391,41.3,217.48,217.45,10.69428977]
[1734379843593,10.69428977,217.52,217.45,10.69428977]
[1734379843923,0.69237502,217.51,217.45,10.69428977]
[1734379844233,17.41968804,217.51,217.44,16.72731302]
[1734379844700,0.69237502,217.51,217.45,16.72731302]
[1734379846505,0.69237502,217.51,217.46,16.72731302]
[1734379846702,16.72731302,217.51,217.44,16.72731302]
[1734379847023,0.69237502,217.5,217.45,16.72731302]
[1734379847193,0.69237502,217.51,217.45,16.72731302]
[1734379847393,0.69237502,217.51,217.41,0.12549]
[1734379847394,0.69237502,217.51,217.46,16.72731302]
[1734379848135,17.41968804,217.51,217.44,16.72731302]
[1734379848309,0.69237502,217.5,217.44,16.72731302]
[1734379848623,0.69237502,217.5,217.45,16.72731302]
[1734379849201,0.69237502,217.51,217.45,16.72731302]
[1734379849735,0.69237502,217.51,217.46,16.72731302]
[1734379850026,0.69237502,217.51,217.45,16.72731302]
[1734379852121,0.69237502,217.51,217.46,16.72731302]
[1734379852512,0.69237502,217.52,217.46,16.72731302]
[1734379853025,17.41968804,217.52,217.45,16.72731302]
[1734379853801,16.72731302,217.49,217.42,16.72731302]
[1734379854028,17.41968804,217.48,217.41,16.72731302]
[1734379854326,17.41968804,217.48,217.32,9.36383263]
[1734379854327,16.72731302,217.45,217.38,16.72731302]
[1734379854500,0.69237502,217.44,217.38,16.72731302]
[1734379854902,0.69237502,217.44,217.39,16.72731302]
[1734379855121,17.41968804,217.46,217.39,16.72731302]
[1734379856911,16.72731302,217.45,217.38,16.72731302]
[1734379857118,0.69237502,217.44,217.38,16.72731302]
[1734379858240,0.69237502,217.44,217.4,16.72731302]
[1734379858407,17.41968804,217.46,217.39,16.72731302]
[1734379859128,16.72731302,217.45,217.38,16.72731302]
[1734379859317,0.69237502,217.44,217.38,16.72731302]
[1734379860224,17.41968804,217.46,217.39,16.72731302]
[1734379860612,16.72731302,217.45,217.38,16.72731302]
[1734379860831,0.69237502,217.44,217.38,16.72731302]
[1734379862207,16.72731302,217.45,217.38,16.72731302]
[1734379862921,0.69237502,217.46,217.36,16.72731302]
[1734379862922,0.69237502,217.44,217.36,16.72731302]
[1734379863248,0.69237502,217.44,217.32,9.12691145]
[1734379863249,16.72731302,217.4,217.33,16.72731302]
[1734379863409,16.72731302,217.41,217.33,16.72731302]
[1734379863743,16.72731302,217.43,217.36,16.72731302]
[1734379864042,17.41968804,217.42,217.35,16.72731302]
[1734379865733,0.69237502,217.42,217.36,16.72731302]
[1734379865915,17.41968804,217.42,217.35,16.72731302]
[1734379866110,11.40670662,217.42,217.34,10.7143316]
[1734379867013,10.7143316,217.41,217.33,10.7143316]
[1734379867214,0.69237502,217.4,217.34,10.7143316]
[1734379867711,0.69237502,217.41,217.36,10.7143316]
[1734379868019,0.69237502,217.42,217.36,10.7143316]
[1734379870020,11.40670662,217.42,217.35,10.7143316]
[1734379870829,11.40670662,217.42,217.33,10.7143316]
[1734379870830,10.7143316,217.4,217.33,10.7143316]
[1734379871145,0.69237502,217.39,217.34,10.7143316]
[1734379872122,0.69237502,217.4,217.34,10.7143316]
[1734379872847,10.7143316,217.39,217.29,5.70484057]
[1734379873062,11.40670662,217.38,217.31,10.7143316]
[1734379873636,11.40670662,217.38,217.29,5.70484057]
[1734379874050,0.69237502,217.38,217.32,10.7143316]
[1734379874448,0.69237502,217.38,217.31,10.7143316]
[1734379874629,10.7143316,217.35,217.24,5.75882356]
[1734379874830,0.69237502,217.34,217.28,10.7143316]
[1734379875141,10.7143316,217.35,217.28,10.7143316]
[1734379875349,10.7143316,217.36,217.29,10.7143316]
[1734379875528,0.69237502,217.35,217.29,10.7143316]
[1734379876950,0.69237502,217.35,217.3,10.7143316]
[1734379877146,0.69237502,217.36,217.3,10.7143316]
[1734379879752,41.3,217.37,217.31,10.7143316]
[1734379880048,41.3,217.37,217.26,23.776884]
[1734379880049,6.1923,217.38,217.34,10.7143316]
[1734379880254,6.1923,217.38,217.33,10.7143316]
[1734379880561,6.1923,217.38,217.32,10.7143316]
[1734379880927,0.69237502,217.37,217.32,10.7143316]
[1734379881265,0.69237502,217.37,217.31,10.7143316]
[1734379882265,10.7143316,217.35,217.25,23.776884]
[1734379882448,10.7143316,217.35,217.29,10.7143316]
[1734379882832,0.69237502,217.37,217.31,10.7143316]
[1734379883169,0.69237502,217.37,217.32,10.7143316]
[1734379883340,0.69237502,217.37,217.31,10.7143316]
[1734379884232,0.69237502,217.37,217.26,0.12549]
[1734379884432,0.69237502,217.37,217.28,10.7143316]
[1734379884433,10.7143316,217.35,217.28,10.7143316]
[1734379884631,0.69237502,217.37,217.31,10.7143316]
[1734379884929,11.40670662,217.37,217.3,10.7143316]
[1734379885426,6.1923,217.38,217.33,10.7143316]
[1734379885633,41.3,217.4,217.35,10.7143316]
[1734379885953,2.21187502,217.41,217.35,10.7143316]
[1734379887543,1.5195,217.41,217.37,10.7143316]
[1734379887751,17.0597316,217.43,217.37,10.7143316]
[1734379887752,0.69237502,217.42,217.37,10.7143316]
[1734379892237,6.3454,217.43,217.39,10.7143316]
[1734379892574,0.69237502,217.44,217.39,10.7143316]
[1734379893158,0.69237502,217.45,217.39,10.7143316]
[1734379893358,11.40670662,217.45,217.39,10.7143316]
[1734379893569,0.69237502,217.45,217.39,10.7143316]
[1734379893977,10.7143316,217.43,217.37,10.7143316]
[1734379894184,10.7143316,217.43,217.36,10.7143316]
[1734379894489,10.7143316,217.43,217.37,10.7143316]
[1734379895574,10.7143316,217.44,217.37,10.7143316]
[1734379895764,54.20800662,217.46,217.39,10.7143316]
[1734379895967,10.7143316,217.44,217.38,10.7143316]
[1734379896180,0.69237502,217.43,217.38,10.7143316]
[1734379896364,0.69237502,217.43,217.37,10.7143316]
[1734379896747,11.40670662,217.43,217.36,10.7143316]
[1734379897457,0.69237502,217.43,217.37,10.7143316]
[1734379897882,11.40670662,217.45,217.38,10.7143316]
[1734379898191,10.7143316,217.44,217.38,10.7143316]
[1734379898394,0.69237502,217.43,217.38,10.7143316]
[1734379898689,10.7143316,217.44,217.38,10.7143316]
[1734379900371,10.7143316,217.45,217.38,10.7143316]
[1734379900566,0.69237502,217.44,217.38,10.7143316]
[1734379900769,0.69237502,217.45,217.39,10.7143316]
[1734379902478,11.40670662,217.45,217.39,10.7143316]
[1734379903955,0.69237502,217.45,217.39,10.7143316]
[1734379906075,10.7143316,217.44,217.37,10.7143316]
[1734379906267,10.7143316,217.45,217.38,10.7143316]
[1734379906876,10.7143316,217.42,217.34,20.12549]
[1734379907092,10.7143316,217.42,217.32,23.776884]
[1734379907294,10.7143316,217.42,217.35,10.7143316]
[1734379907903,10.7143316,217.43,217.35,10.7143316]
[1734379908098,0.69237502,217.42,217.35,10.7143316]
[1734379908582,0.69237502,217.42,217.36,10.7143316]
[1734379908763,10.7143316,217.43,217.36,10.7143316]
[1734379908960,2.19367502,217.46,217.36,10.7143316]
[1734379908961,10.7143316,217.44,217.36,10.7143316]
[1734379909290,0.69237502,217.43,217.36,10.7143316]
[1734379911968,11.40670662,217.43,217.36,10.7143316]
[1734379912275,11.40670662,217.43,217.33,0.12549]
[1734379912276,0.69237502,217.43,217.37,10.7143316]
[1734379913301,0.69237502,217.43,217.36,10.7143316]
[1734379914690,0.69237502,217.43,217.37,10.7143316]
[1734379917106,0.69237502,217.43,217.33,0.12549]
[1734379917107,41.3,217.45,217.4,10.7143316]
[1734379917307,41.3,217.45,217.41,10.7143316]
[1734379918834,2.19367502,217.46,217.41,10.7143316]
[1734379919038,0.69237502,217.46,217.41,10.7143316]
[1734379919701,41.99237502,217.47,217.41,10.7143316]
[1734379920230,1.6511,217.51,217.45,10.7143316]
[1734379920534,0.69237502,217.5,217.45,10.7143316]
[1734379921198,0.69237502,217.5,217.44,10.7143316]
[1734379921697,11.40670662,217.5,217.44,10.7143316]
[1734379923519,0.69237502,217.5,217.44,10.7143316]
[1734379923720,11.40670662,217.5,217.44,10.7143316]
[1734379924501,11.40670662,217.5,217.43,10.7143316]
[1734379926404,10.7143316,217.49,217.42,10.7143316]
[1734379926843,10.7143316,217.45,217.37,7.28094057]
[1734379927005,10.7143316,217.43,217.37,5.70484057]
[1734379927201,10.7143316,217.43,217.36,10.7143316]
[1734379927417,0.69237502,217.42,217.36,10.7143316]
[1734379927927,10.7143316,217.45,217.37,10.7143316]
[1734379928117,0.69237502,217.44,217.37,10.7143316]
[1734379928432,0.69237502,217.44,217.38,10.7143316]
[1734379928622,11.40670662,217.44,217.37,10.7143316]
[1734379931936,10.7143316,217.43,217.36,10.7143316]
[1734379932448,10.7143316,217.44,217.37,10.7143316]
[1734379932741,0.69237502,217.43,217.37,10.7143316]
[1734379935936,0.69237502,217.43,217.36,10.7143316]
[1734379935937,11.40670662,217.43,217.36,10.7143316]
[1734379937354,0.69237502,217.43,217.36,10.7143316]
[1734379937637,0.69237502,217.43,217.37,10.7143316]
[1734379938851,10.7143316,217.42,217.35,10.7143316]
[1734379939012,0.69237502,217.41,217.35,10.7143316]
[1734379939213,0.69237502,217.41,217.34,10.7143316]
[1734379939438,0.69237502,217.41,217.32,5.70484057]
[1734379939624,10.71499371,217.4,217.32,5.70484057]
[1734379939828,11.40736873,217.39,217.32,5.70484057]
[1734379940714,10.71499371,217.41,217.32,5.70484057]
[1734379940951,0.69237502,217.4,217.32,5.70484057]
[1734379941150,20.69237502,217.41,217.32,5.70484057]
[1734379942728,0.69237502,217.41,217.32,5.70484057]
[1734379942938,41.3,217.43,217.33,0.12549]
[1734379943411,41.99237502,217.43,217.33,0.12549]
[1734379944240,10.71499371,217.42,217.33,0.12549]
[1734379944651,0.69237502,217.42,217.33,0.12549]
[1734379944835,41.3,217.43,217.33,0.12549]
[1734379945034,41.99237502,217.43,217.33,0.12549]
[1734379945351,41.3,217.43,217.33,5.83033057]
[1734379945560,1.5019,217.47,217.35,23.902374]
[1734379945716,10.71499371,217.49,217.37,23.902374]
[1734379945917,0.69237502,217.49,217.37,29.60721457]
[1734379946116,0.69237502,217.49,217.39,0.12549]
[1734379946327,11.40736873,217.5,217.39,0.12549]
[1734379946565,10.71499371,217.47,217.39,0.12549]
[1734379946717,10.71499371,217.48,217.39,0.12549]
[1734379946917,11.40736873,217.47,217.38,5.70484057]
[1734379947155,10.71499371,217.46,217.38,5.70484057]
[1734379947938,10.71499371,217.47,217.38,5.70484057]
[1734379948264,10.71499371,217.48,217.38,5.70484057]
[1734379949227,0.69237502,217.5,217.38,11.46366413]
[1734379949417,10.71499371,217.49,217.39,23.776884]
[1734379950061,0.69237502,217.5,217.39,23.776884]
[1734379950062,11.40736873,217.5,217.39,23.776884]
[1734379950426,10.71499371,217.49,217.39,23.776884]
[1734379950626,30.71499371,217.4,217.35,0.68976924]
[1734379950827,30.71499371,217.4,217.19,62.73066407]
[1734379950828,41.3,217.35,217.18,1.6615]
[1734379951135,53.57496855,217.36,217.18,1.6615]
[1734379951136,10.71499371,217.29,217.18,1.6615]
[1734379951340,0.69237502,217.28,217.18,1.6615]
[1734379952331,0.69237502,217.28,217.19,20.0]
[1734379954769,10.71499371,217.27,217.19,20.0]
[1734379954968,10.71499371,217.27,217.11,7.8376]
[1734379954969,10.71499371,217.25,217.11,7.8376]
[1734379955130,0.69237502,217.24,217.11,7.8376]
[1734379955757,0.69237502,217.24,217.12,0.12549]
[1734379956664,0.69237502,217.25,217.14,20.0]
[1734379956853,0.69237502,217.25,217.12,0.12549]
[1734379957167,0.69237502,217.25,217.12,23.902374]
[1734379957343,52.70736873,217.29,217.16,23.776884]
[1734379957957,52.70736873,217.29,217.17,0.12549]
[1734379958573,41.99237502,217.29,217.17,0.12549]
[1734379960540,41.99237502,217.29,217.19,20.0]
[1734379960862,0.69237502,217.29,217.2,23.902374]
[1734379961063,0.69237502,217.3,217.2,23.902374]
[1734379963757,8.1262,217.31,217.2,23.902374]
[1734379964269,0.69237502,217.3,217.2,23.902374]
[1734379964764,8.81857502,217.31,217.2,23.902374]
[1734379966067,8.81857502,217.31,217.03,7.216333]
[1734379966068,10.71499371,217.28,217.18,1.82895546]
[1734379966266,10.71499371,217.23,217.1,1.84267675]
[1734379967263,10.71499371,217.23,217.12,0.12549]
[1734379967835,10.71499371,217.23,217.12,23.902374]
[1734379968043,10.71499371,217.23,217.15,20.0]
[1734379968260,10.71499371,217.24,217.15,20.0]
[1734379968463,0.69237502,217.23,217.15,20.0]
[1734379969071,10.71499371,217.27,217.15,20.0]
[1734379969268,0.69237502,217.26,217.15,20.0]
[1734379970133,11.40736873,217.26,217.15,20.0]
[1734379970334,10.71499371,217.25,217.15,20.0]
[1734379970529,0.69237502,217.24,217.15,20.0]
[1734379971169,0.69237502,217.24,217.11,12.8376]
[1734379971170,0.69237502,217.27,217.19,20.0]
[1734379972261,10.71499371,217.29,217.19,20.0]
[1734379972262,0.69237502,217.28,217.19,20.0]
[1734379974461,0.69237502,217.29,217.19,20.0]
[1734379974846,0.69237502,217.3,217.19,20.0]
[1734379975482,41.3,217.36,217.23,20.0]
[1734379975639,0.69237502,217.35,217.24,23.776884]
[1734379975841,6.4478,217.44,217.24,23.776884]
[1734379975842,10.71499371,217.42,217.28,23.902374]
[1734379976190,0.69237502,217.43,217.32,23.776884]
[1734379976488,0.69237502,217.43,217.29,42.21032824]
[1734379976489,0.69237502,217.43,217.34,23.776884]
[1734379976785,10.71499371,217.41,217.33,44.65383704]
[1734379976935,11.40736873,217.4,217.33,27.8229101]
[1734379977357,11.40736873,217.4,217.33,20.0]
[1734379977557,10.71499371,217.39,217.31,20.0]
[1734379977761,0.69237502,217.38,217.3,20.0]
[1734379977973,10.71499371,217.38,217.27,23.776884]
[1734379978190,0.69237502,217.37,217.3,20.0]
[1734379978539,16.74786395,217.36,217.27,23.776884]
[1734379978847,16.74786395,217.34,217.2,9.738]
[1734379979047,16.74786395,217.32,217.2,7.9043]
[1734379979251,0.69237502,217.31,217.2,7.9043]
[1734379979558,17.44023897,217.31,217.2,1.6038]
[1734379980442,0.69237502,217.31,217.2,1.6038]
[1734379980670,41.3,217.31,217.21,0.12549]
[1734379981480,41.3,217.31,217.23,20.0]
[1734379981641,41.3,217.31,217.27,20.0]
[1734379981840,16.74786395,217.34,217.27,20.0]
[1734379982170,0.69237502,217.33,217.24,20.0]
[1734379982784,17.44023897,217.33,217.24,20.0]
[1734379983087,16.74786395,217.32,217.24,20.0]
[1734379983281,0.69237502,217.31,217.24,20.0]
[1734379983986,0.69237502,217.31,217.23,20.0]
[1734379984190,0.69237502,217.32,217.23,20.0]
[1734379984557,0.69237502,217.32,217.22,20.0]
[1734379984877,0.69237502,217.32,217.2,1.6038]
[1734379986257,0.69237502,217.32,217.22,20.0]
[1734379987482,41.3,217.3,217.22,20.0]
[1734379987660,0.69237502,217.29,217.22,20.0]
[1734379989880,41.3,217.3,217.22,20.0]
[1734379990053,41.3,217.3,217.23,23.776884]
[1734379990978,12.9,217.33,217.23,23.776884]
[1734379991293,17.44023897,217.32,217.22,20.0]
[1734379991695,0.69237502,217.32,217.22,20.0]
[1734379993768,0.69237502,217.32,217.23,23.776884]
[1734379996567,12.9,217.33,217.26,20.0]
[1734379996871,13.59237502,217.37,217.27,23.776884]
[1734379998683,0.69237502,217.37,217.3,20.0]
[1734380003803,0.69237502,217.37,217.25,6.87834672]
[1734380003804,16.74786395,217.36,217.25,6.87834672]
[1734380004103,0.69237502,217.35,217.25,6.87834672]
[1734380004304,0.69237502,217.37,217.25,6.87834672]
[1734380005105,0.69237502,217.37,217.29,20.0]
[1734380006678,12.9,217.36,217.28,20.0]
[1734380007015,0.69237502,217.35,217.28,20.0]
[1734380009504,0.69237502,217.35,217.23,23.776884]
[1734380009505,16.745665,217.33,217.23,23.776884]
[1734380009705,0.69237502,217.32,217.22,1.6296]
[1734380010087,12.9,217.29,217.18,6.87834672]
[1734380010285,0.69237502,217.28,217.18,6.87834672]
[1734380010485,12.9,217.27,217.18,6.87834672]
[1734380010795,0.69237502,217.26,217.18,6.87834672]
[1734380011309,12.9,217.27,217.18,6.87834672]
[1734380011602,12.9,217.27,217.19,23.776884]
[1734380012511,12.9,217.27,217.2,23.776884]
[1734380014116,12.9,217.31,217.23,20.0]
[1734380014337,0.69237502,217.3,217.23,20.0]
[1734380014494,12.9,217.31,217.23,20.0]
[1734380015820,0.69237502,217.3,217.23,20.0]
[1734380016618,12.9,217.31,217.23,20.0]
[1734380017499,0.69237502,217.3,217.23,20.0]
[1734380017698,12.9,217.31,217.23,20.0]
[1734380018103,0.69237502,217.3,217.23,20.0]